bitfinex/quotes_ETHUSD_20251008
["timestamp","ask_amount","ask_price","bid_price","bid_amount"]
[1759919976434,35.54311565,4500.5,4499.8,0.001]
[1759919976637,36.22742034,4500.5,4499.8,0.001]
[1759919976837,36.67450632,4500.5,4499.8,0.001]
[1759919977135,36.6750001,4500.5,4499.8,0.001]
[1759919977838,33.35385978,4500.5,4499.8,0.001]
[1759919978006,37.19997854,4500.5,4499.8,0.001]
[1759919979011,33.35385978,4500.5,4499.8,0.001]
[1759919980349,37.98839036,4499.9,4499.8,0.001]
[1759919980512,40.48886135,4499.9,4499.8,0.001]
[1759919980851,40.4358491,4499.9,4499.8,0.001]
[1759919981150,37.98873611,4499.2,4499.1,0.01]
[1759919981318,38.67367395,4499.2,4499.1,0.01]
[1759919981547,38.77377395,4499.2,4499.1,0.01]
[1759919981754,41.0255444,4499.2,4499.1,0.01]
[1759919983067,41.20597441,4499.2,4499.1,0.01]
[1759919983770,11.16532564,4499.2,4499.1,0.01]
[1759919983934,9.01390292,4499.2,4499.1,0.01]
[1759919984265,34.92790292,4499.2,4499.1,0.01]
[1759919984856,34.92710292,4499.2,4499.1,0.01]
[1759919985541,34.44959061,4499.2,4499.1,0.01]
[1759919986157,34.92688586,4499.2,4499.1,0.01]
[1759919986363,39.70865631,4499.2,4499.1,0.01]
[1759919986743,39.70812441,4499.2,4499.1,0.01]
[1759919986939,39.70812441,4499.2,4499.1,0.011]
[1759919987164,39.70812441,4499.2,4499.1,1e-08]
[1759919987356,40.34172441,4499.2,4499.1,1e-08]
[1759919988760,37.81172441,4499.2,4499.1,1e-08]
[1759919989074,40.34172441,4499.2,4499.1,1e-08]
[1759919989570,37.81172441,4499.2,4499.1,1e-08]
[1759919989747,40.34172441,4499.2,4499.1,1e-08]
[1759919990148,40.34171493,4499.2,4499.1,1e-08]
[1759919992193,10.43084575,4499.2,4499.1,1e-08]
[1759919992475,40.43084575,4499.2,4499.1,1e-08]
[1759919994062,41.02852603,4499.2,4499.1,1e-08]
[1759919994573,40.43084575,4499.2,4499.1,1e-08]
[1759919994875,40.43086203,4499.2,4499.1,1e-08]
[1759919996251,41.22776908,4499.2,4499.1,1e-08]
[1759919996440,40.43086203,4499.2,4499.1,1e-08]
[1759919997177,40.90568109,4499.2,4499.1,1e-08]
[1759919997474,42.10005557,4499.2,4499.1,1e-08]
[1759919998065,40.90568109,4499.2,4499.1,1e-08]
[1759920000293,10.90568109,4499.2,4499.1,1e-08]
[1759920000466,40.90568109,4499.2,4499.1,1e-08]
[1759920000664,37.90086203,4499.2,4499.1,1e-08]
[1759920000871,40.43086203,4499.2,4499.1,1e-08]
[1759920002880,37.90086203,4499.2,4499.1,1e-08]
[1759920003377,41.62462788,4499.2,4499.1,1e-08]
[1759920004447,40.43086203,4499.2,4499.1,1e-08]
[1759920005054,39.09564553,4499.2,4499.1,1e-08]
[1759920005289,40.43086203,4499.2,4499.1,1e-08]
[1759920005452,37.90086203,4499.2,4499.1,1e-08]
[1759920005650,40.43386203,4499.2,4499.1,1e-08]
[1759920006494,38.69988442,4499.2,4499.1,1e-08]
[1759920006678,33.09749158,4499.2,4499.1,1e-08]
[1759920006857,36.13708757,4499.2,4499.1,1e-08]
[1759920007198,33.05356062,4499.2,4499.1,1e-08]
[1759920007366,29.81556062,4499.2,4499.1,1e-08]
[1759920007559,0.68691646,4499.2,4499.1,1e-08]
[1759920007767,2.43223856,4499.2,4499.1,1e-08]
[1759920008070,2.32391735,4499.2,4499.1,1e-08]
[1759920008671,0.0012,4499.2,4499.1,1e-08]
[1759920008853,2.22381735,4499.2,4499.1,1e-08]
[1759920009282,2.32391735,4499.2,4499.1,1e-08]
[1759920010061,0.20916073,4499.2,4499.1,1e-08]
[1759920010771,0.20916073,4499.2,4499.1,0.46820001]
[1759920010772,0.0012,4499.2,4499.1,0.46820001]
[1759920011169,0.0012,4499.2,4499.1,1e-08]
[1759920012087,0.0012,4499.2,4499.1,0.46820001]
[1759920012299,0.0012,4499.2,4499.1,0.7505589]
[1759920012611,0.0012,4499.2,4499.1,1e-08]
[1759920013308,2.32281735,4499.2,4499.1,1e-08]
[1759920015317,32.5305703,4499.2,4499.1,1e-08]
[1759920015510,33.00926213,4499.2,4499.1,1e-08]
[1759920016106,35.53926213,4499.2,4499.1,1e-08]
[1759920016409,37.79103258,4499.2,4499.1,1e-08]
[1759920016910,7.30403258,4499.2,4499.1,1e-08]
[1759920017112,2.70250918,4499.2,4499.1,1e-08]
[1759920017298,2.22381735,4499.2,4499.1,1e-08]
[1759920017504,2.32281735,4499.2,4499.1,1e-08]
[1759920017712,2.80148122,4499.2,4499.1,1e-08]
[1759920017914,2.32281735,4499.2,4499.1,1e-08]
[1759920018210,2.22381735,4499.2,4499.1,1e-08]
[1759920018410,2.32281735,4499.2,4499.1,1e-08]
[1759920023316,0.0012,4499.2,4499.1,1e-08]
[1759920023505,2.22381735,4499.2,4499.1,1e-08]
[1759920023925,0.0012,4499.2,4499.1,1e-08]
[1759920024394,0.1116,4499.2,4499.1,1e-08]
[1759920025629,0.0012,4499.2,4499.1,2.69086676]
[1759920025927,0.0012,4499.2,4499.1,3.60010584]
[1759920027120,0.0012,4499.2,4499.1,3.57787918]
[1759920029444,0.0012,4499.2,4499.1,18.10010584]
[1759920029727,0.0012,4499.2,4499.1,18.07787918]
[1759920030327,0.0012,4499.2,4499.1,20.60687918]
[1759920030527,0.0012,4499.2,4499.1,6.10687918]
[1759920030721,0.0012,4499.2,4499.1,5.21986676]
[1759920030900,0.0004,4499.2,4499.1,5.21986676]
[1759920031097,0.0004,4499.2,4499.1,2.99720001]
[1759920031554,0.0004,4499.2,4499.1,5.21986676]
[1759920032048,0.0004,4499.2,4499.1,2.99720001]
[1759920032347,0.0004,4499.2,4499.1,5.21986676]
[1759920032539,0.0004,4499.2,4499.1,7.41413416]
[1759920033106,0.0004,4499.2,4499.1,11.26025292]
[1759920034301,0.0004,4499.2,4499.1,7.41413416]
[1759920035720,0.0004,4499.2,4499.1,11.37065292]
[1759920038017,0.0004,4499.2,4499.1,10.84708339]
[1759920038217,0.0004,4499.2,4499.1,23.15281599]
[1759920040001,0.0004,4499.2,4499.1,23.24188648]
[1759920041564,0.0004,4499.2,4499.1,23.87548648]
[1759920042636,0.0004,4499.2,4499.1,25.79548648]
[1759920044973,0.0004,4499.2,4499.1,29.11803571]
[1759920045163,0.0004,4499.2,4499.1,31.36980616]
[1759920046074,0.002,4499.7,4499.6,2.85601977]
[1759920046261,0.002,4499.7,4499.6,10.627569]
[1759920046442,0.002,4499.7,4499.6,7.88421977]
[1759920046648,0.002,4499.7,4499.6,29.11837067]
[1759920046978,0.002,4499.7,4499.6,31.37014112]
[1759920047999,0.002,4499.7,4499.6,28.04759189]
[1759920048874,0.002,4499.7,4499.6,27.32393945]
[1759920050381,0.002,4499.7,4499.6,31.28008868]
[1759920050571,0.002,4499.7,4499.6,27.95753945]
[1759920051567,0.002,4499.7,4499.6,31.28008868]
[1759920051779,0.002,4499.7,4499.6,31.36914509]
[1759920052057,0.002,4499.7,4499.6,28.04659586]
[1759920053584,0.002,4499.7,4499.6,31.36914509]
[1759920053987,0.0012,4499.7,4499.6,31.36914509]
[1759920054859,0.0012,4499.7,4499.6,28.04659586]
[1759920055287,0.0012,4499.7,4499.6,31.36914509]
[1759920055690,0.0012,4499.7,4499.6,28.04659586]
[1759920055873,0.0012,4499.7,4499.6,31.36914509]
[1759920057100,0.0012,4499.7,4499.6,28.04659586]
[1759920058209,0.0012,4499.7,4499.6,25.51859586]
[1759920058388,0.0012,4499.7,4499.6,28.04659586]
[1759920059606,0.0012,4499.7,4499.6,25.51859586]
[1759920060000,0.0012,4499.7,4499.6,28.04659586]
[1759920060506,0.002,4500.1,4500.0,42.22102222]
[1759920060711,0.002,4500.1,4500.0,48.07157145]
[1759920060876,0.002,4500.1,4500.0,49.58854551]
[1759920062303,0.002,4500.1,4500.0,47.06054551]
[1759920062505,0.002,4500.1,4500.0,45.32822222]
[1759920063008,0.002,4500.1,4500.0,48.65077145]
[1759920063606,0.002,4500.1,4500.0,49.17397145]
[1759920063810,0.002,4500.1,4500.0,49.28437145]
[1759920064103,0.002,4500.1,4500.0,63.87341874]
[1759920064307,0.002,4500.1,4500.0,66.12518919]
[1759920065207,0.002,4500.1,4500.0,62.96358919]
[1759920065408,0.002,4500.1,4500.0,65.4025419]
[1759920066386,0.002,4500.1,4500.0,66.0361419]
[1759920069394,0.002,4500.1,4500.0,65.4025419]
[1759920070433,0.002,4500.1,4500.0,62.8745419]
[1759920070611,0.002,4500.1,4500.0,65.4025419]
[1759920070812,0.002,4500.1,4500.0,62.8745419]
[1759920071114,0.002,4500.1,4500.0,65.4025419]
[1759920072296,0.002,4500.1,4500.0,62.4057419]
[1759920072503,0.002,4500.1,4500.0,42.77322222]
[1759920072717,0.002,4500.1,4500.0,42.6372]
[1759920073325,0.002,4500.1,4500.0,43.079]
[1759920073626,0.002,4500.1,4500.0,45.30122222]
[1759920077028,0.0012,4500.1,4500.0,45.30122222]
[1759920082931,0.0012,4500.1,4500.0,48.62377145]
[1759920083838,0.0012,4500.1,4500.0,50.8755419]
[1759920084524,0.0012,4500.1,4500.0,48.3475419]
[1759920084710,0.0012,4500.1,4500.0,50.8755419]
[1759920086135,0.0012,4500.1,4500.0,51.5091419]
[1759920086337,0.0012,4500.1,4500.0,51.59818919]
[1759920086536,0.0012,4500.1,4500.0,66.09818919]
[1759920086916,1e-08,4500.2,4500.1,4.77577284]
[1759920087112,1e-08,4500.2,4500.1,10.22114329]
[1759920087643,1e-08,4500.2,4500.1,24.72114329]
[1759920088221,1e-08,4500.2,4500.1,25.51569252]
[1759920088432,1e-08,4500.2,4500.1,28.04269252]
[1759920094462,1e-08,4500.2,4500.1,28.13173981]
[1759920095570,1e-08,4500.2,4500.1,28.24213981]
[1759920097955,1e-08,4500.2,4500.1,28.76102902]
[1759920098466,1e-08,4500.2,4500.1,29.21599456]
[1759920099939,0.00120001,4500.6,4500.5,2.22197533]
[1759920100158,0.00120001,4500.6,4500.5,9.66841593]
[1759920100378,0.00120001,4500.6,4500.5,10.22811593]
[1759920100585,0.00120001,4500.6,4500.5,10.3171537]
[1759920101847,0.00120001,4500.6,4500.5,3.31511526]
[1759920102055,0.00120001,4500.6,4500.5,5.33089508]
[1759920102248,0.00120001,4500.6,4500.5,5.39772262]
[1759920102853,0.00120001,4500.6,4500.5,2.87072262]
[1759920103086,0.00120001,4500.6,4500.5,5.39772262]
[1759920106056,0.00120001,4500.6,4500.5,6.03132262]
[1759920106384,0.00120001,4500.6,4500.5,21.46909668]
[1759920111969,0.00120001,4500.6,4500.5,23.38909668]
[1759920114200,0.002,4501.1,4501.0,2.8553285]
[1759920114401,0.002,4501.1,4501.0,9.35538422]
[1759920114606,0.002,4501.1,4501.0,9.79776694]
[1759920114763,0.002,4501.1,4501.0,25.58875412]
[1759920115690,0.002,4501.1,4501.0,19.22131568]
[1759920115893,0.002,4501.1,4501.0,21.74731568]
[1759920121616,0.002,4501.1,4501.0,23.66731568]
[1759920122002,1e-08,4501.6,4501.5,2.85508172]
[1759920122207,0.002,4501.7,4501.5,2.85508172]
[1759920122208,1e-08,4501.9,4501.7,2.22138303]
[1759920122422,1e-08,4501.9,4501.8,2.85493368]
[1759920122628,1e-08,4501.9,4501.8,20.33403368]
[1759920122790,1e-08,4501.9,4501.8,20.42304035]
[1759920123129,0.00920001,4502.9,4502.8,2.22084036]
[1759920123291,0.00920001,4502.9,4502.8,4.74684036]
[1759920123486,0.00920001,4502.9,4502.8,2.9791]
[1759920123717,0.00920001,4502.9,4502.8,14.9531]
[1759920124017,0.00920001,4502.9,4502.8,17.026]
[1759920124234,0.00920001,4502.9,4502.8,17.4791]
[1759920124798,0.00920001,4502.9,4502.8,14.9531]
[1759920125034,0.00920001,4502.9,4502.8,17.026]
[1759920125448,0.00920001,4502.9,4502.8,2.526]
[1759920126618,0.01120001,4502.9,4502.8,2.526]
[1759920128033,0.01120001,4502.9,4502.8,2.9791]
[1759920128202,0.01120001,4502.9,4502.8,5.19994036]
[1759920128407,0.01120001,4502.9,4502.8,2.67394036]
[1759920128631,0.01120001,4502.9,4502.8,5.19994036]
[1759920129422,0.01120001,4502.9,4502.8,2.67394036]
[1759920129629,0.01120001,4502.9,4502.8,5.19994036]
[1759920129821,0.01120001,4502.9,4502.8,2.67394036]
[1759920130001,0.01120001,4502.9,4502.8,5.22114876]
[1759920130208,0.01120001,4502.9,4502.8,5.19894036]
[1759920131935,0.01120001,4502.9,4502.8,5.86644322]
[1759920132334,0.01120001,4502.9,4502.8,5.97684322]
[1759920133249,0.01120001,4502.9,4502.8,6.06584276]
[1759920133734,0.01120001,4502.9,4502.8,9.9072812]
[1759920133935,0.01120001,4502.9,4502.8,25.0408812]
[1759920135667,1e-08,4502.9,4502.8,26.9608812]
[1759920137470,0.002,4503.4,4503.1,4.77429241]
[1759920137636,0.002,4503.4,4503.3,8.61563222]
[1759920137836,0.002,4503.4,4503.3,8.72603222]
[1759920138060,0.002,4503.4,4503.3,23.67913222]
[1759920138340,0.002,4503.4,4503.3,23.76810029]
[1759920139166,0.002,4503.4,4503.3,23.95810029]
[1759920139366,0.002,4503.4,4503.3,25.78047841]
[1759920140461,0.002,4503.4,4503.3,21.93903997]
[1759920140664,0.002,4503.4,4503.3,28.30547841]
[1759920141064,0.002,4503.4,4503.3,21.93903997]
[1759920141448,0.002,4503.4,4503.3,24.46403997]
[1759920142246,0.002,4503.4,4503.3,24.27403997]
[1759920142646,0.002,4503.4,4503.3,21.74903997]
[1759920142989,0.002,4503.4,4503.3,24.27403997]
[1759920144467,0.002,4503.4,4503.3,24.27303997]
[1759920145859,0.002,4503.4,4503.3,21.74903997]
[1759920146173,0.0012,4503.4,4503.3,24.27303997]
[1759920148887,1e-08,4504.4,4503.6,2.2204185]
[1759920149061,1e-08,4504.4,4504.3,8.21373923]
[1759920149381,1e-08,4504.4,4504.3,5.00590079]
[1759920149580,1e-08,4504.4,4504.3,22.11885461]
[1759920149772,1e-08,4504.4,4504.3,22.57195461]
[1759920150079,1e-08,4504.4,4504.3,22.76195461]
[1759920150382,1e-08,4504.4,4504.3,23.4930247]
[1759920150948,1e-08,4504.4,4504.3,20.7790247]
[1759920151147,1e-08,4504.4,4504.3,23.3030247]
[1759920152975,1e-08,4504.4,4504.3,20.7494247]
[1759920156877,1e-08,4504.4,4504.3,18.2254247]
[1759920157076,1e-08,4504.4,4504.3,19.92940079]
[1759920157686,3.84143845,4504.4,4504.3,17.4672]
[1759920157873,1e-08,4504.4,4504.3,2.9672]
[1759920158277,1e-08,4504.4,4504.3,19.70950179]
[1759920158585,1e-08,4504.4,4504.3,14.5]
[1759920158586,3.31648734,4504.4,4504.3,14.5]
[1759920158785,3.31648734,4504.4,4504.3,17.024]
[1759920158956,1e-08,4504.4,4504.3,19.79770079]
[1759920159155,1e-08,4504.4,4504.3,17.5776]
[1759920159558,0.33164874,4504.4,4504.3,2.6344]
[1759920159756,0.33164874,4504.4,4504.3,3.0776]
[1759920159981,1e-08,4504.4,4504.3,3.0776]
[1759920160183,1e-08,4504.4,4504.3,2.6344]
[1759920160387,1e-08,4504.4,4504.3,3.0776]
[1759920160684,1e-08,4504.4,4504.3,2.6344]
[1759920161053,3.31648734,4504.4,4504.3,2.6344]
[1759920161251,3.31648734,4504.4,4504.3,0.1104]
[1759920161455,3.31648734,4504.4,4504.3,2.6344]
[1759920161894,1e-08,4504.4,4504.3,0.5774]
[1759920162099,1e-08,4504.4,4504.3,2.6344]
[1759920162263,1e-08,4504.4,4504.3,0.5774]
[1759920162597,0.33164874,4504.4,4504.3,0.1104]
[1759920162763,0.33164874,4504.4,4504.3,2.6344]
[1759920162963,0.33164874,4504.4,4504.3,2.524]
[1759920163579,0.33164874,4504.4,4504.1,0.1104]
[1759920163794,0.33164874,4504.4,4504.2,2.524]
[1759920164091,0.25516037,4504.3,4504.2,2.524]
[1759920164298,1e-08,4504.4,4504.2,2.524]
[1759920164865,3.31648734,4504.4,4504.2,2.524]
[1759920165395,3.31648734,4504.4,4503.6,14.5]
[1759920165595,3.31648733,4504.1,4503.7,4.74437736]
[1759920165765,3.31648733,4504.1,4503.8,0.467]
[1759920166080,1e-08,4504.4,4503.6,14.5]
[1759920166081,3.31648733,4504.0,4503.9,2.524]
[1759920167067,3.31648733,4504.0,4503.6,14.5]
[1759920167264,3.31648733,4503.7,4503.2,0.467]
[1759920167480,3.31648733,4503.7,4503.3,2.524]
[1759920167792,3.31648733,4503.7,4503.4,0.467]
[1759920167994,3.31648733,4503.7,4503.5,2.524]
[1759920168168,3.31648733,4503.7,4503.5,3.01320495]
[1759920168503,5.90173891,4503.7,4503.1,0.467]
[1759920168695,3.31648733,4503.3,4503.0,14.5]
[1759920168900,3.31648733,4503.3,4503.1,2.524]
[1759920169066,3.31568733,4503.3,4503.2,2.524]
[1759920169607,2.22054799,4503.4,4503.2,2.524]
[1759920169906,3.54851213,4503.3,4503.2,2.524]
[1759920170105,3.31648733,4503.3,4503.2,2.524]
[1759920170308,3.31648733,4503.6,4503.2,2.524]
[1759920170513,3.31648733,4503.6,4503.2,2.991]
[1759920171004,3.31648733,4503.3,4503.2,2.524]
[1759920171508,3.74713606,4503.3,4502.8,0.001]
[1759920171707,3.31648733,4502.9,4502.8,0.001]
[1759920171907,3.31648733,4502.9,4502.8,0.845]
[1759920172701,3.31648733,4502.9,4502.8,0.001]
[1759920172881,5.53727837,4502.9,4502.8,0.001]
[1759920173209,6.19990621,4502.9,4502.8,0.001]
[1759920173411,6.19990621,4502.9,4502.8,0.866]
[1759920174013,6.10090621,4502.9,4502.8,0.866]
[1759920174483,6.19990621,4502.9,4502.8,0.866]
[1759920174686,6.19990621,4502.9,4502.8,2.525]
[1759920174903,3.88011517,4502.9,4502.8,2.525]
[1759920175213,3.31648733,4502.9,4502.8,2.525]
[1759920176109,3.31648733,4503.1,4502.8,3.1024]
[1759920176310,3.31648733,4503.1,4502.9,0.02220791]
[1759920177235,3.31648733,4503.1,4502.8,2.6354]
[1759920178820,5.53718997,4503.1,4502.8,2.6354]
[1759920179202,3.31648733,4503.1,4502.8,2.6354]
[1759920179708,3.88017134,4503.1,4502.9,2.524]
[1759920180017,0.0997,4503.0,4502.8,0.1114]
[1759920180504,2.32049104,4502.9,4502.8,0.001]
[1759920180706,7.55697837,4502.9,4502.8,0.001]
[1759920180910,9.73444829,4502.9,4502.8,0.001]
[1759920181123,10.36804829,4502.9,4502.8,0.001]
[1759920181319,2.22098833,4502.5,4502.4,0.001]
[1759920181528,8.85396299,4502.5,4502.4,0.001]
[1759920181709,5.63717566,4502.5,4502.4,0.001]
[1759920181920,9.3184766,4502.5,4502.4,0.001]
[1759920182920,11.2384766,4502.5,4502.4,0.001]
[1759920183117,11.2384766,4502.5,4502.3,0.001]
[1759920183118,4.14103766,4502.4,4502.3,0.001]
[1759920183437,34.14103766,4502.4,4502.3,0.001]
[1759920183643,9.29942167,4502.4,4502.3,0.001]
[1759920184166,3.68130094,4502.5,4502.3,0.001]
[1759920184360,1.92,4502.4,4502.3,0.001]
[1759920185436,4.14103766,4502.4,4502.3,0.001]
[1759920185828,2.22093901,4502.6,4502.3,0.001]
[1759920186032,0.0997,4502.7,4502.3,0.001]
[1759920186033,3.31648733,4502.4,4502.3,0.001]
[1759920186851,5.53752499,4502.4,4502.3,0.001]
[1759920188650,6.41307219,4502.4,4502.3,0.001]
[1759920188823,11.64955952,4502.4,4502.3,0.001]
[1759920190058,12.28315952,4502.4,4502.3,0.001]
[1759920191266,42.28315952,4502.4,4502.3,0.001]
[1759920192234,42.28235952,4502.4,4502.3,0.001]
[1759920192440,36.19035952,4502.4,4502.3,0.001]
[1759920194270,36.87505758,4502.4,4502.3,0.001]
[1759920197360,12.96705758,4502.4,4502.3,0.001]
[1759920197548,42.96705758,4502.4,4502.3,0.001]
[1759920198373,12.96705758,4502.4,4502.3,0.001]
[1759920198574,20.62105758,4502.4,4502.3,0.001]
[1759920198963,19.52705758,4502.4,4502.3,0.001]
[1759920199169,12.96705758,4502.4,4502.3,0.001]
[1759920199350,9.01697025,4502.4,4502.3,0.001]
[1759920199549,3.52370049,4502.4,4502.3,40.001]
[1759920199877,3.31648733,4502.4,4502.3,40.001]
[1759920200079,7.45752499,4502.4,4502.3,40.001]
[1759920200668,10.77401232,4502.4,4502.3,40.001]
[1759920200875,11.08138735,4502.4,4502.3,40.001]
[1759920201062,42.41182094,4502.4,4502.3,40.001]
[1759920201383,43.52379917,4502.4,4502.3,40.001]
[1759920202179,43.52379917,4502.4,4502.3,34.95843913]
[1759920203185,16.68179917,4502.4,4502.3,34.95843913]
[1759920203386,16.42079917,4502.4,4502.3,34.95843913]
[1759920203583,13.52379917,4502.4,4502.3,34.95843913]
[1759920203760,15.55779917,4502.4,4502.3,34.95843913]
[1759920203962,13.52379917,4502.4,4502.3,34.95843913]
[1759920204283,11.55976558,4502.4,4502.3,34.95843913]
[1759920204483,8.24327825,4502.4,4502.3,34.95843913]
[1759920204860,8.14357825,4502.4,4502.3,34.95843913]
[1759920206189,8.24327825,4502.4,4502.3,34.95843913]
[1759920206372,11.55976558,4502.4,4502.3,34.95843913]
[1759920207574,2.71645326,4502.4,4502.3,34.95843913]
[1759920207774,5.34688733,4502.4,4502.3,34.95843913]
[1759920207973,3.42688733,4502.4,4502.3,34.95843913]
[1759920208188,3.31648733,4502.4,4502.3,39.73620958]
[1759920208494,3.31648733,4502.4,4502.3,40.16530958]
[1759920208695,3.31648733,4502.4,4502.3,40.27570958]
[1759920208868,0.002,4502.5,4502.3,40.27570958]
[1759920209196,0.002,4502.5,4502.4,1.58165524]
[1759920209975,0.002,4502.5,4502.4,3.8026929]
[1759920211203,0.002,4502.5,4502.4,3.82490327]
[1759920212800,0.002,4502.5,4502.4,18.32490327]
[1759920213001,0.002,4502.5,4502.4,18.3026929]
[1759920213808,0.002,4502.5,4502.4,18.4130929]
[1759920214103,0.002,4502.5,4502.4,18.76465524]
[1759920214397,0.002,4502.5,4502.4,20.9856929]
[1759920215371,0.0012,4502.5,4502.4,20.9856929]
[1759920218566,0.0012,4502.5,4502.4,15.0851]
[1759920218768,0.0012,4502.5,4502.4,17.6111]
[1759920219305,0.0012,4502.5,4502.4,19.83213766]
[1759920221312,0.0012,4502.5,4502.4,17.6111]
[1759920221902,0.0012,4502.5,4502.4,17.1364]
[1759920222406,0.0012,4502.5,4502.4,0.1104]
[1759920222606,2.6063656,4502.5,4502.4,2.525]
[1759920223206,0.38537727,4502.5,4502.4,2.525]
[1759920223517,0.0012,4502.5,4502.4,2.525]
[1759920224088,0.0012,4502.5,4502.4,2.98281037]
[1759920224288,0.0012,4502.5,4502.4,3.09321037]
[1759920224981,0.0012,4502.5,4502.4,5.31424803]
[1759920225292,0.0012,4502.5,4502.4,7.43340811]
[1759920225495,0.0012,4502.5,4502.4,7.54380811]
[1759920226183,0.0012,4502.5,4502.4,22.04380811]
[1759920227706,0.0012,4502.5,4502.4,19.51880811]
[1759920227885,0.0012,4502.5,4502.4,2.6354]
[1759920229690,2.22218833,4502.5,4502.4,2.6354]
[1759920230807,0.0012,4502.5,4502.4,0.1104]
[1759920231116,0.0012,4502.5,4502.4,2.525]
[1759920231327,0.0012,4502.5,4502.4,2.9606]
[1759920231614,0.0012,4502.5,4502.4,2.525]
[1759920231909,0.0012,4502.5,4502.4,2.9606]
[1759920232307,0.0012,4502.5,4502.4,2.98281037]
[1759920234318,0.0012,4502.5,4502.4,3.09321037]
[1759920236318,0.0012,4502.5,4502.4,2.65761037]
[1759920237124,0.0012,4502.5,4502.4,3.09321037]
[1759920237917,2.22218833,4502.5,4502.4,0.1104]
[1759920238122,2.22103766,4502.4,4502.3,34.95943913]
[1759920238431,6.06081033,4502.4,4502.3,37.48443913]
[1759920239713,6.15981033,4502.4,4502.3,37.48443913]
[1759920239948,2.31923766,4502.4,4502.3,37.48443913]
[1759920240320,2.31923766,4502.4,4502.3,34.95943913]
[1759920240518,3.21806119,4502.4,4502.3,37.48443913]
[1759920241239,3.11906119,4502.4,4502.3,34.95943913]
[1759920241553,6.45911353,4502.4,4502.3,34.95943913]
[1759920241733,6.45911353,4502.4,4502.3,37.48443913]
[1759920242416,6.45911353,4502.4,4502.3,34.95943913]
[1759920242751,36.45911353,4502.4,4502.3,34.95943913]
[1759920242968,36.45911353,4502.4,4502.3,28.23602463]
[1759920243252,37.1270396,4502.4,4502.3,28.23602463]
[1759920243550,22.5066862,4502.4,4502.3,28.23602463]
[1759920243750,16.9886862,4502.4,4502.3,28.23602463]
[1759920243923,40.2996862,4502.4,4502.3,28.23602463]
[1759920244453,21.1676862,4502.4,4502.3,28.23602463]
[1759920244961,9.6660862,4502.4,4502.3,30.76102463]
[1759920246468,9.6660862,4502.4,4502.3,28.23602463]
[1759920246469,10.2996862,4502.4,4502.3,28.23602463]
[1759920246648,40.2996862,4502.4,4502.3,14.5295705]
[1759920247080,40.96760781,4502.4,4502.3,14.5295705]
[1759920247660,32.221235,4502.0,4501.9,0.001]
[1759920247839,36.74926001,4502.0,4501.9,0.001]
[1759920248042,36.84826001,4502.0,4501.9,0.001]
[1759920250530,9.96486001,4502.0,4501.9,0.001]
[1759920250730,6.74926001,4502.0,4501.9,0.001]
[1759920250929,3.51496344,4502.0,4501.9,0.001]
[1759920252873,0.89882353,4502.4,4501.9,0.001]
[1759920253075,2.331635,4502.0,4501.9,0.001]
[1759920254185,2.430635,4502.0,4501.9,0.001]
[1759920254549,4.5581908,4502.0,4501.9,0.001]
[1759920254742,4.350635,4502.0,4501.9,0.001]
[1759920254948,37.07763958,4502.0,4501.9,0.001]
[1759920255159,36.39186946,4502.0,4501.9,0.001]
[1759920256361,9.59286946,4502.0,4501.9,0.001]
[1759920256671,6.39186946,4502.0,4501.9,0.001]
[1759920257678,6.29286946,4502.0,4501.9,0.001]
[1759920258580,6.39186946,4502.0,4501.9,0.001]
[1759920260278,0.1104,4502.0,4501.9,0.001]
[1759920260793,2.331635,4502.0,4501.9,0.001]
[1759920260952,2.430635,4502.0,4501.9,0.001]
[1759920261279,2.429835,4502.0,4501.9,0.001]
[1759920261603,0.1096,4502.0,4501.9,0.001]
[1759920261897,2.330835,4502.0,4501.9,0.001]
[1759920264549,0.1096,4502.0,4501.9,0.001]
[1759920264754,1.92,4502.4,4501.9,0.001]
[1759920264755,2.33153735,4502.2,4501.9,0.001]
[1759920265080,0.58921529,4502.2,4501.9,0.001]
[1759920265278,2.22119931,4502.1,4501.9,0.001]
[1759920267482,2.221235,4502.0,4501.9,0.001]
[1759920268401,2.42934233,4502.0,4501.9,0.001]
[1759920269987,3.24451359,4502.0,4501.9,0.001]
[1759920270188,5.64332888,4502.0,4501.9,0.001]
[1759920270392,36.8751671,4502.0,4501.9,0.001]
[1759920270889,36.36598668,4502.0,4501.9,0.001]
[1759920271894,16.57198668,4502.0,4501.9,0.001]
[1759920272062,14.43598668,4502.0,4501.9,0.001]
[1759920273300,36.36598668,4502.0,4501.9,0.001]
[1759920274107,9.29498668,4502.0,4501.9,0.001]
[1759920274313,13.05855935,4502.0,4501.9,0.001]
[1759920274523,12.95955935,4502.0,4501.9,0.001]
[1759920274712,2.90815762,4502.0,4501.9,0.001]
[1759920275169,2.42934233,4502.0,4501.9,0.001]
[1759920276609,2.52834233,4502.0,4501.9,0.001]
[1759920277016,3.00715762,4502.0,4501.9,0.001]
[1759920278705,2.90815762,4502.0,4501.9,0.001]
[1759920279199,2.42934233,4502.0,4501.9,0.001]
[1759920279804,2.42953539,4502.0,4501.9,0.001]
[1759920280394,2.53993539,4502.0,4501.9,0.001]
[1759920280575,2.63893539,4502.0,4501.9,0.001]
[1759920281181,2.53993539,4502.0,4501.9,0.001]
[1759920281509,0.31870039,4502.0,4501.9,0.001]
[1759920281681,2.42953539,4502.0,4501.9,0.001]
[1759920282013,0.20830039,4502.0,4501.9,0.001]
[1759920282236,2.90835068,4502.0,4501.9,0.001]
[1759920282443,2.42953539,4502.0,4501.9,0.001]
[1759920282794,5.75052236,4502.0,4501.9,0.001]
[1759920283119,7.37662517,4502.0,4501.9,0.001]
[1759920283420,6.22933765,4502.0,4501.9,0.001]
[1759920284289,6.22853765,4502.0,4501.9,0.001]
[1759920284490,6.32753765,4502.0,4501.9,0.001]
[1759920284919,6.22853765,4502.0,4501.9,0.001]